fUSD/lending_fUSD_20240910
["ID","MTS","AMOUNT","RATE_DAILY","PERIOD"]
[337669612,1725935444812,-4189.49,0.00012844,2]
[337669613,1725935444822,-2673.31,0.00012844,2]
[337669614,1725935444832,-16313.34,0.00012844,2]
[337669615,1725935444841,-151.0,0.00012844,2]
[337669616,1725935444851,-73199.37,0.00012844,2]
[337669617,1725935444860,-151.0,0.00012844,2]
[337669618,1725935444870,-15827.54,0.00012844,2]
[337669619,1725935444880,-5063.29,0.00012844,2]
[337669620,1725935444890,-10125.14,0.00012844,2]
[337669621,1725935444900,-500.0,0.00012845,2]
[337669622,1725935444909,-500.0,0.00012845,2]
[337669623,1725935444919,-500.0,0.00012845,2]
[337669624,1725935444929,-672.5,0.00012845,2]
[337669625,1725935444938,-500.0,0.00012845,2]
[337669626,1725935444948,-500.0,0.00012845,2]
[337669627,1725935444958,-173.9968481,0.00012845,2]
[337669628,1725935444967,-500.0,0.00012845,2]
[337669629,1725935444977,-500.0,0.00012845,2]
[337669630,1725935444987,-500.0,0.00012845,2]
[337669631,1725935444997,-500.0,0.00012845,2]
[337669632,1725935445006,-500.0,0.00012845,2]
[337669633,1725935445021,-573.96,0.00012845,2]
[337669634,1725935445030,-500.0,0.00012845,2]
[337669635,1725935445041,-500.0,0.00012845,2]
[337669636,1725935445050,-500.0,0.00012845,2]
[337669637,1725935445060,-500.0,0.00012845,2]
[337669638,1725935445070,-519.49,0.00012845,2]
[337669639,1725935445079,-500.0,0.00012845,2]
[337669640,1725935445089,-500.0,0.00012845,2]
[337669641,1725935445099,-500.0,0.00012845,2]
[337669642,1725935445110,-500.0,0.00012845,2]
[337669643,1725935445120,-218.08029443,0.00012845,2]
[337669644,1725935445130,-500.0,0.00012845,2]
[337669645,1725935445140,-151.0,0.00012845,2]
[337669646,1725935445150,-1567.29,0.00012845,2]
[337669647,1725935445160,-500.0,0.00012845,2]
[337669648,1725935445170,-518.13453789,0.00012845,2]
[337669649,1725935445180,-500.0,0.00012845,2]
[337669650,1725935445189,-505.29395736,0.00012845,2]
[337669651,1725935445199,-808.21,0.00012845,2]
[337669652,1725935445208,-500.0,0.00012845,2]
[337669653,1725935445218,-3559.72,0.00012845,2]
[337669654,1725935445227,-500.0,0.00012845,2]
[337669655,1725935445237,-500.0,0.00012845,2]
[337669656,1725935445246,-500.0,0.00012845,2]
[337669657,1725935445255,-2415.44,0.00012845,2]
[337669658,1725935445266,-500.0,0.00012845,2]
[337669659,1725935445275,-642.24,0.00012845,2]
[337669660,1725935445287,-500.0,0.00012845,2]
[337669661,1725935445296,-1272.81,0.00012845,2]
[337669662,1725935445306,-469.21439392,0.00012845,2]
[337669663,1725935445315,-500.0,0.00012845,2]
[337669664,1725935445324,-2291.49,0.00012845,2]
[337669665,1725935445334,-151.0,0.00012845,2]
[337669666,1725935445344,-500.0,0.00012845,2]
[337669667,1725935445354,-500.0,0.00012845,2]
[337669668,1725935445363,-3751.3,0.00012845,2]
[337669669,1725935445372,-500.0,0.00012845,2]
[337669670,1725935445382,-500.0,0.00012845,2]
[337669671,1725935445391,-1748.2,0.00012845,2]
[337669672,1725935445401,-1574.82,0.00012845,2]
[337669673,1725935445410,-1146.72,0.00012845,2]
[337669674,1725935445419,-500.0,0.00012845,2]
[337669675,1725935445429,-500.0,0.00012845,2]
[337669676,1725935445438,-2121.47,0.00012845,2]
[337669677,1725935445447,-500.0,0.00012845,2]
[337669678,1725935445457,-500.0,0.00012845,2]
[337669679,1725935445466,-3782.3,0.00012845,2]
[337669680,1725935445476,-2957.02,0.00012845,2]
[337669681,1725935445485,-500.0,0.00012845,2]
[337669682,1725935445495,-2681.21,0.00012845,2]
[337669683,1725935445504,-1526.29,0.00012845,2]
[337669684,1725935445515,-598.15086991,0.00012845,2]
[337669685,1725935445525,-500.0,0.00012845,2]
[337669686,1725935445534,-4810.94,0.00012845,2]
[337669687,1725935445543,-500.0,0.00012845,2]
[337669688,1725935445553,-500.0,0.00012845,2]
[337669689,1725935445563,-500.0,0.00012845,2]
[337669690,1725935445575,-500.0,0.00012845,2]
[337669691,1725935445585,-500.0,0.00012845,2]
[337669692,1725935445594,-500.0,0.00012845,2]
[337669693,1725935445604,-3465.17,0.00012845,2]
[337669694,1725935445614,-151.0,0.00012845,2]
[337669695,1725935445625,-500.0,0.00012845,2]
[337669696,1725935445636,-2476.54,0.00012845,2]
[337669697,1725935445648,-500.61186022,0.00012845,2]
[337669698,1725935445659,-500.0,0.00012845,2]
[337669699,1725935445670,-4368.36,0.00012845,2]
[337669700,1725935445682,-500.0,0.00012845,2]
[337669701,1725935445693,-500.0,0.00012845,2]
[337669704,1725935445892,-2029.38,0.00012845,2]
[337669705,1725935445902,-4349.29,0.00012845,2]
[337669706,1725935445912,-2148.13,0.00012845,2]
[337669707,1725935445921,-577.17,0.00012845,2]
[337669708,1725935445931,-2428.39,0.00012845,2]
[337669709,1725935445941,-151.0,0.00012845,2]
[337669710,1725935445951,-151.0,0.00012845,2]
[337669711,1725935445960,-4971.11,0.00012845,2]
[337669712,1725935445970,-2897.53,0.00012845,2]
[337669713,1725935445979,-799.31,0.00012845,2]
[337669714,1725935445988,-518.37,0.00012845,2]
[337669715,1725935445998,-3717.58,0.00012845,2]
[337669716,1725935446008,-722.01,0.00012845,2]
[337669717,1725935446018,-11258.8,0.00012845,2]
[337669718,1725935446028,-924.46,0.00012845,2]
[337669719,1725935446038,-1749.3,0.00012845,2]
[337669720,1725935446048,-7557.3,0.00012845,2]
[337669721,1725935446057,-500.0,0.00012845,2]
[337669722,1725935446067,-12013.56,0.00012845,2]
[337669723,1725935446080,-13733.92,0.00012845,2]
[337669724,1725935446091,-1095.06,0.00012845,2]
[337669725,1725935446100,-6342.51,0.00012845,2]
[337669726,1725935446110,-2323.11,0.00012845,2]
[337669727,1725935446119,-4326.62,0.00012845,2]
[337669728,1725935446129,-500.0,0.00012845,2]
[337669729,1725935446139,-12768.77,0.00012845,2]
[337669730,1725935446149,-1915.51,0.00012845,2]
[337669731,1725935446162,-1833.080076,0.00012845,2]
[337669732,1725935446172,-4437.76,0.00012845,2]
[337669733,1725935446183,-500.0,0.00012845,2]
[337669734,1725935446193,-8948.38,0.00012845,2]
[337669735,1725935446204,-151.0,0.00012845,2]
[337669736,1725935446214,-151.0,0.00012845,2]
[337669737,1725935446223,-3973.75,0.00012845,2]
[337669738,1725935446233,-641.29,0.00012845,2]
[337669739,1725935446242,-4126.59,0.00012845,2]
[337669740,1725935446251,-5016.51,0.00012845,2]
[337669741,1725935446261,-500.0,0.00012845,2]
[337669742,1725935446270,-11194.53,0.00012845,2]
[337669743,1725935446280,-1395.59,0.00012845,2]
[337669744,1725935446289,-595.87,0.00012845,2]
[337669745,1725935446298,-801.51,0.00012845,2]
[337669746,1725935446308,-500.0,0.00012845,2]
[337669747,1725935446317,-1818.34,0.00012845,2]
[337669748,1725935446326,-834.76,0.00012845,2]
[337669749,1725935446336,-7889.65,0.00012845,2]
[337669750,1725935446346,-558.97,0.00012845,2]
[337669751,1725935446356,-1677.45,0.00012845,2]
[337669752,1725935446367,-1620.58,0.00012845,2]
[337669753,1725935446378,-4772.63,0.00012845,2]
[337669754,1725935446390,-151.0,0.00012845,2]
[337669755,1725935446400,-1628.78,0.00012845,2]
[337669756,1725935446412,-1004.64,0.00012845,2]
[337669757,1725935446422,-3586.51,0.00012845,2]
[337669758,1725935446433,-5095.72,0.00012845,2]
[337669759,1725935446442,-500.0,0.00012845,2]
[337669760,1725935446452,-2459.02,0.00012845,2]
[337669761,1725935446463,-4302.11,0.00012845,2]
[337669762,1725935446474,-1727.84,0.00012845,2]
[337669763,1725935446484,-3753.14,0.00012845,2]
[337669764,1725935446495,-750.02,0.00012845,2]
[337669765,1725935446505,-4571.75,0.00012845,2]
[337669766,1725935446515,-151.0,0.00012845,2]
[337669767,1725935446524,-26711.1409645,0.00012845,2]
[337669768,1725935446539,-977.39069926,0.00012845,2]
[337669769,1725935446551,-927.77,0.00012845,2]
[337669770,1725935446571,-519.0,0.00012845,2]
[337669771,1725935447250,-12778.0653,0.00012845,2]
[337669772,1725935447263,-775.6526,0.00012845,2]
[337669773,1725935447281,-21703.07529552,0.00012845,2]
[337669774,1725935447293,-266.362806,0.00012845,2]
[337669775,1725935447305,-2832.05608872,0.00012845,2]
[337669776,1725935448509,-6084.5,0.00012782,2]
[337669777,1725935448521,-537.68384014,0.00012782,2]
[337669778,1725935448554,-103.60730176,0.00012782,2]
[337669779,1725935448566,-267.52500889,0.00012782,2]
[337669780,1725935448582,-383.17782098,0.00012782,2]
[337669781,1725935448594,-603.76091973,0.00012782,2]
[337669782,1725935448606,-1328.7451085,0.00012782,2]
[337669783,1725935448617,-29336.546246,0.00012845,2]
[337669784,1725935448627,-500.0,0.00012845,2]
[337669785,1725935448636,-6239.65531126,0.00012845,2]
[337669786,1725935448649,-1455.39500522,0.00012845,2]
[337669787,1725935448665,-785.31968352,0.00012845,2]
[337669788,1725935448675,-1076.27507248,0.00012845,2]
[337669789,1725935448686,-425.205,0.00012845,2]
[337669790,1725935448698,-387.73992752,0.00012845,2]
[337669791,1725935448708,-16.74238061,0.00012845,2]
[337669792,1725935448720,-136.56704239,0.00012845,2]
[337669793,1725935448730,-655.84695761,0.00012845,2]
[337669794,1725935494384,250.0,0.00011897,2]
[337669795,1725935496410,218.38,0.00011885,2]
[337669796,1725935496677,218.03,0.00010959,2]
[337669797,1725935507479,181.69,0.00010959,2]
[337669798,1725935511090,1852.42,0.00011885,2]
[337669799,1725935518291,151.41,0.00010959,2]
[337669800,1725935524580,23900.0,0.00011879,2]
[337669802,1725935529068,757.07,0.00010959,2]
[337669803,1725935529722,118786.24918,7.781e-05,7]
[337669804,1725935654100,3297.35,0.00011851,2]
[337669805,1725935669543,150.0,0.00011843,2]
[337669806,1725935670012,231.0,0.00010959,2]
[337669807,1725935670089,500.0,0.00010959,2]
[337669808,1725935670420,500.0,0.00010959,2]
[337669809,1725935670747,561.0,0.00010959,2]
[337669810,1725935742125,250.0,0.00011811,2]
[337669811,1725935772142,559.42,9.878e-05,2]
[337669812,1725935772260,405.89,0.00010959,2]
[337669813,1725935864208,227.36,0.00011747,2]
[337669815,1725935916356,192.9,9.401e-05,2]
[337669816,1725935942469,402.97,0.00011747,2]
[337669817,1725935971901,250.0,0.00011747,2]
[337669818,1725936003296,150.0,0.00011747,2]
[337669819,1725936003723,230.04395837,0.00011747,2]
[337669820,1725936020607,462.35,0.00011747,2]
[337669821,1725936056906,9545.347252,0.00011981,2]
[337669824,1725936162614,2344.51,0.00011722,2]
[337669828,1725936302652,150.0,0.00011688,2]
[337669829,1725936305272,251.08565897,0.00011688,2]
[337669830,1725936305788,250.0,0.00011722,2]
[337669831,1725936312243,156.75167292,0.00011688,2]
[337669832,1725936326845,151.26477374,0.0001163,2]
[337669833,1725936340772,153.33,0.00010959,2]
[337669834,1725936363314,531.44,9.806e-05,2]
[337669835,1725936481402,250.0,0.0001173,2]
[337669836,1725936503658,-531.44,0.0001207,2]
[337669837,1725936503688,-184.44822387,0.00012268,2]
[337669838,1725936503719,-3522.05701032,0.00012368,2]
[337669839,1725936503750,-150.0,0.00012438,2]
[337669840,1725936503780,-1580.59481272,0.00012468,2]
[337669841,1725936503832,-1475.42638728,0.00012468,2]
[337669842,1725936503864,-268.11562113,0.00012469,2]
[337669843,1725936503898,-150.0,0.00012469,2]
[337669844,1725936503927,-3377.06640912,0.00012469,2]
[337669845,1725936508329,2472.61,0.00012,2]
[337669846,1725936527932,218.11,0.00011809,2]
[337669847,1725936528679,-6193.3230162,0.00012469,2]
[337669848,1725936528746,-4674.68489894,0.00012469,2]
[337669849,1725936530272,192.9,9.447e-05,2]
[337669851,1725936553567,-1545.31119988,0.00012467,2]
[337669852,1725936553602,-300.0,0.00012469,2]
[337669853,1725936553632,-512.40137574,0.00012469,2]
[337669854,1725936553663,-4052.97059888,0.0001247,2]
[337669855,1725936553709,-5049.19833177,0.0001247,2]
[337669856,1725936578922,-300.0,0.0001247,2]
[337669869,1725936632067,-2493.29304679,0.0001247,2]
[337669870,1725936632307,-27847.0306,0.0001247,2]
[337669874,1725936638109,-16839.58002256,0.0001247,2]
[337669875,1725936638119,-3681.39,0.0001247,2]
[337669876,1725936638128,-168.32486676,0.00012471,2]
[337669877,1725936638138,-157.69,0.00012558,2]
[337669878,1725936638150,-6152.0,0.00012566,2]
[337669879,1725936638160,-6585.99,0.00012566,2]
[337669880,1725936638170,-5126.23,0.00012566,2]
[337669881,1725936638179,-231.53956237,0.00012566,2]
[337669882,1725936638188,-4597.44,0.00012566,2]
[337669883,1725936638198,-4713.52,0.00012566,2]
[337669884,1725936638207,-500.0,0.00012566,2]
[337669885,1725936638216,-2253.02,0.00012566,2]
[337669886,1725936638225,-2708.73,0.00012566,2]
[337669887,1725936638234,-1968.17,0.00012566,2]
[337669888,1725936638244,-1176.42,0.00012566,2]
[337669889,1725936638253,-500.0,0.00012566,2]
[337669890,1725936638263,-500.0,0.00012566,2]
[337669891,1725936638273,-500.0,0.00012566,2]
[337669892,1725936638282,-500.0,0.00012566,2]
[337669893,1725936638292,-500.0,0.00012566,2]
[337669894,1725936638301,-500.0,0.00012566,2]
[337669895,1725936638310,-500.0,0.00012566,2]
[337669896,1725936638320,-354.20838353,0.00012566,2]
[337669897,1725936638330,-500.0,0.00012566,2]
[337669898,1725936638340,-425.91505848,0.00012566,2]
[337669900,1725936638350,-500.0,0.00012566,2]
[337669901,1725936638359,-500.0,0.00012566,2]
[337669902,1725936638379,-439.82899562,0.00012566,2]
[337669903,1725936638391,-500.0,0.00012566,2]
[337669904,1725936638402,-500.0,0.00012566,2]
[337669905,1725936638412,-500.0,0.00012566,2]
[337669906,1725936638422,-500.0,0.00012566,2]
[337669907,1725936638432,-500.0,0.00012566,2]
[337669908,1725936638442,-297.95313111,0.00012566,2]
[337669909,1725936638452,-500.0,0.00012566,2]
[337669911,1725936638462,-500.0,0.00012566,2]
[337669913,1725936638472,-500.0,0.00012566,2]
[337669915,1725936638482,-289.74263843,0.00012566,2]
[337669917,1725936638491,-500.0,0.00012566,2]
[337669919,1725936638502,-6772.27,0.00012566,2]
[337669921,1725936638512,-500.0,0.00012567,2]
[337669923,1725936638522,-57.24159044,0.00012567,2]
[337669927,1725936638548,-442.75840956,0.00012567,2]
[337669929,1725936638558,-116.36408919,0.00012567,2]
[337669931,1725936638570,-383.63591081,0.00012567,2]
[337669933,1725936638579,-500.0,0.00012567,2]
[337669935,1725936638590,-12118.54,0.00012567,2]
[337669937,1725936638600,-795.37,0.00012567,2]
[337669939,1725936638610,-1820.23,0.00012567,2]
[337669941,1725936638621,-74118.41,0.00012567,2]
[337669943,1725936638631,-3256.91998686,0.00012567,2]
[337669961,1725936640271,-1780.78001314,0.00012567,2]
[337669962,1725936640282,-10404.1,0.00012567,2]
[337669963,1725936640293,-500.0,0.00012567,2]
[337669964,1725936640303,-2839.79,0.00012567,2]
[337669965,1725936640313,-500.0,0.00012567,2]
[337669966,1725936640323,-2454.74,0.00012567,2]
[337669967,1725936640333,-1353.6,0.00012567,2]
[337669968,1725936640343,-1055.66,0.00012567,2]
[337669969,1725936640353,-4773.42,0.00012567,2]
[337669970,1725936640363,-3467.11,0.00012567,2]
[337669971,1725936640373,-4229.14,0.00012567,2]
[337669972,1725936640384,-4959.91,0.00012567,2]
[337669973,1725936640394,-616.46,0.00012567,2]
[337669974,1725936640404,-6279.55,0.00012567,2]
[337669975,1725936640414,-1162.49,0.00012567,2]
[337669976,1725936640424,-500.0,0.00012567,2]
[337669977,1725936640434,-500.0,0.00012567,2]
[337669978,1725936640444,-2219.27,0.00012567,2]
[337669979,1725936640454,-541.48600066,0.00012567,2]
[337669980,1725936640464,-500.0,0.00012567,2]
[337669981,1725936640475,-5382.64,0.00012567,2]
[337669982,1725936640485,-2048.27,0.00012567,2]
[337669983,1725936640494,-526.13,0.00012567,2]
[337669984,1725936640504,-4779.65,0.00012567,2]
[337669985,1725936640514,-500.0,0.00012567,2]
[337669986,1725936640524,-500.0,0.00012567,2]
[337669987,1725936640534,-500.0,0.00012567,2]
[337669988,1725936640543,-3595.42,0.00012567,2]
[337669989,1725936640553,-500.0,0.00012567,2]
[337669990,1725936640563,-3441.49,0.00012567,2]
[337669991,1725936640573,-500.0,0.00012567,2]
[337669992,1725936640583,-16144.01,0.00012567,2]
[337669993,1725936640593,-12289.96,0.00012567,2]
[337669994,1725936640602,-500.0,0.00012567,2]
[337669995,1725936640612,-7061.93,0.00012567,2]
[337669996,1725936640622,-6597.58,0.00012567,2]
[337669997,1725936640632,-4155.78,0.00012567,2]
[337669998,1725936640641,-4811.43,0.00012567,2]
[337669999,1725936640651,-6073.74,0.00012567,2]
[337670000,1725936640661,-500.0,0.00012567,2]
[337670001,1725936640670,-3840.37,0.00012567,2]
[337670002,1725936640679,-500.0,0.00012567,2]
[337670003,1725936640689,-24990.94,0.00012567,2]
[337670004,1725936640699,-616.03158288,0.00012567,2]
[337670005,1725936640708,-2557.55,0.00012567,2]
[337670006,1725936640717,-10334.85,0.00012567,2]
[337670007,1725936640728,-2450.54,0.00012567,2]
[337670008,1725936640738,-1373.42,0.00012567,2]
[337670009,1725936640749,-67099.43,0.00012567,2]
[337670010,1725936640759,-500.0,0.00012567,2]
[337670011,1725936640769,-1756.46,0.00012567,2]
[337670012,1725936640778,-14953.89,0.00012567,2]
[337670013,1725936640788,-500.0,0.00012567,2]
[337670014,1725936640798,-2224.28,0.00012567,2]
[337670015,1725936640807,-4641.35,0.00012567,2]
[337670016,1725936640818,-14508.58,0.00012567,2]
[337670017,1725936640829,-762.23,0.00012567,2]
[337670018,1725936640840,-500.0,0.00012568,2]
[337670019,1725936640851,-500.16973603,0.00012568,2]
[337670020,1725936640861,-740.86,0.00012568,2]
[337670021,1725936640871,-3263.08,0.00012568,2]
[337670022,1725936640881,-2214.15,0.00012568,2]
[337670023,1725936640892,-588.72,0.00012568,2]
[337670024,1725936640902,-1166.74,0.00012568,2]
[337670025,1725936640912,-2100.54,0.00012568,2]
[337670026,1725936640922,-500.0,0.00012568,2]
[337670027,1725936640932,-500.0,0.00012568,2]
[337670028,1725936640943,-3438.69,0.00012568,2]
[337670029,1725936640955,-500.0,0.00012568,2]
[337670030,1725936640965,-500.0,0.00012568,2]
[337670031,1725936640976,-1602.52,0.00012568,2]
[337670032,1725936640987,-500.0,0.00012568,2]
[337670033,1725936640996,-1443.58,0.00012568,2]
[337670034,1725936641005,-500.0,0.00012568,2]
[337670035,1725936641016,-1051.16,0.00012568,2]
[337670036,1725936641025,-500.0,0.00012568,2]
[337670037,1725936641034,-500.0,0.00012568,2]
[337670038,1725936641043,-500.0,0.00012568,2]
[337670039,1725936641052,-500.0,0.00012568,2]
[337670040,1725936641063,-1944.68,0.00012568,2]
[337670041,1725936641074,-500.0,0.00012568,2]
[337670042,1725936641084,-2457.78,0.00012568,2]
[337670043,1725936641095,-2710.6,0.00012568,2]
[337670044,1725936641105,-500.0,0.00012568,2]
[337670045,1725936641116,-500.0,0.00012568,2]
[337670046,1725936641126,-1399.1,0.00012568,2]
[337670047,1725936641136,-500.0,0.00012568,2]
[337670048,1725936641145,-4410.03,0.00012568,2]
[337670049,1725936641154,-500.0,0.00012568,2]
[337670050,1725936641164,-500.0,0.00012568,2]
[337670051,1725936641174,-500.0,0.00012568,2]
[337670052,1725936641186,-500.0,0.00012568,2]
[337670053,1725936641198,-500.0,0.00012568,2]
[337670054,1725936641209,-500.0,0.00012568,2]
[337670055,1725936641220,-3176.41,0.00012568,2]
[337670056,1725936641230,-500.0,0.00012568,2]
[337670057,1725936641239,-2270.16,0.00012568,2]
[337670058,1725936641248,-500.0,0.00012568,2]
[337670059,1725936641258,-4004.33,0.00012568,2]
[337670060,1725936641268,-500.0,0.00012568,2]
[337670061,1725936641279,-500.0,0.00012568,2]
[337670062,1725936641289,-1860.27,0.00012568,2]
[337670063,1725936641299,-3986.85,0.00012568,2]
[337670064,1725936641310,-7773.67,0.00012568,2]
[337670065,1725936641320,-529.07,0.00012568,2]
[337670066,1725936641330,-1969.12,0.00012568,2]
[337670067,1725936641341,-2226.02,0.00012568,2]
[337670068,1725936641350,-2174.69,0.00012568,2]
[337670069,1725936641360,-4556.85,0.00012568,2]
[337670070,1725936641369,-500.0,0.00012568,2]
[337670071,1725936641380,-3407.79,0.00012568,2]
[337670072,1725936641389,-847.43,0.00012568,2]
[337670073,1725936641398,-732.7,0.00012568,2]
[337670074,1725936641407,-500.0,0.00012568,2]
[337670075,1725936641417,-661.84,0.00012568,2]
[337670076,1725936641426,-9281.38,0.00012568,2]
[337670077,1725936641435,-8916.29,0.00012568,2]
[337670078,1725936641445,-2656.06,0.00012568,2]
[337670079,1725936641454,-2129.52,0.00012568,2]
[337670080,1725936641464,-12589.43,0.00012568,2]
[337670081,1725936641473,-10320.57,0.00012568,2]
[337670082,1725936641483,-11012.43,0.00012568,2]
[337670083,1725936641492,-541.95769423,0.00012568,2]
[337670084,1725936641503,-5813.97,0.00012568,2]
[337670085,1725936641513,-3966.07,0.00012568,2]
[337670086,1725936641522,-500.0,0.00012568,2]
[337670087,1725936641531,-1003.81,0.00012568,2]
[337670088,1725936641540,-1755.89,0.00012568,2]
[337670089,1725936641550,-587.85,0.00012568,2]
[337670090,1725936641559,-4906.4,0.00012568,2]
[337670091,1725936641568,-11704.71,0.00012568,2]
[337670092,1725936641577,-4067.94,0.00012568,2]
[337670093,1725936641587,-500.0,0.00012568,2]
[337670094,1725936641596,-8202.68,0.00012568,2]
[337670095,1725936641606,-3642.6,0.00012568,2]
[337670096,1725936641615,-4598.47,0.00012568,2]
[337670097,1725936641624,-546.21,0.00012568,2]
[337670098,1725936641634,-734.71,0.00012568,2]
[337670099,1725936641643,-10261.66,0.00012568,2]
[337670100,1725936641651,-3782.71,0.00012568,2]
[337670101,1725936641661,-512.39,0.00012568,2]
[337670102,1725936641670,-1666.81,0.00012568,2]
[337670103,1725936641680,-1279.29,0.00012568,2]
[337670104,1725936641692,-1537.66,0.00012568,2]
[337670105,1725936641702,-1485.53,0.00012568,2]
[337670106,1725936641712,-500.0,0.00012568,2]
[337670107,1725936641722,-4374.91,0.00012568,2]
[337670108,1725936641734,-7232.18,0.00012568,2]
[337670109,1725936641746,-1493.04,0.00012568,2]
[337670110,1725936641756,-920.92,0.00012568,2]
[337670111,1725936641767,-4671.08,0.00012568,2]
[337670112,1725936641777,-3287.64,0.00012568,2]
[337670113,1725936641786,-3943.6,0.00012568,2]
[337670114,1725936641796,-4190.77,0.00012568,2]
[337670115,1725936641807,-4705.99,0.00012568,2]
[337670116,1725936641818,-88758.14,0.00012568,2]
[337670117,1725936641828,-2976.07,0.00012568,2]
[337670118,1725936641838,-7362.08,0.00012568,2]
[337670119,1725936641848,-6504.34,0.00012568,2]
[337670120,1725936641857,-3440.38,0.00012568,2]
[337670121,1725936641866,-500.0,0.00012568,2]
[337670122,1725936641875,-8456.48,0.00012568,2]
[337670123,1725936641886,-521.6,0.00012568,2]
[337670124,1725936641897,-470.57877309,0.00012569,2]
[337670125,1725936641911,-500.0,0.00012569,2]
[337670126,1725936641923,-500.0,0.00012569,2]
[337670127,1725936641934,-500.0,0.00012569,2]
[337670128,1725936641945,-500.0,0.00012569,2]
[337670129,1725936641957,-1436.68,0.00012569,2]
[337670130,1725936641968,-538.7242921,0.00012569,2]
[337670131,1725936641979,-500.0,0.00012569,2]
[337670132,1725936641988,-500.0,0.00012569,2]
[337670133,1725936642000,-500.0,0.00012569,2]
[337670134,1725936642009,-500.0,0.00012569,2]
[337670135,1725936642019,-500.0,0.00012569,2]
[337670136,1725936642029,-505.65,0.00012569,2]
[337670137,1725936642039,-500.0,0.00012569,2]
[337670138,1725936642049,-500.0,0.00012569,2]
[337670139,1725936642058,-500.0,0.00012569,2]
[337670140,1725936642068,-500.0,0.00012569,2]
[337670141,1725936642077,-1071.65,0.00012569,2]
[337670142,1725936642087,-500.0,0.00012569,2]
[337670143,1725936642097,-1887.47,0.00012569,2]
[337670144,1725936642108,-500.0,0.00012569,2]
[337670145,1725936642118,-508.16933188,0.00012569,2]
[337670146,1725936642130,-540.9077004,0.00012569,2]
[337670147,1725936642140,-500.0,0.00012569,2]
[337670148,1725936642150,-596.4,0.00012569,2]
[337670149,1725936642161,-201.70830568,0.00012569,2]
[337670150,1725936642170,-3725.09,0.00012569,2]
[337670151,1725936642181,-3483.2,0.00012569,2]
[337670152,1725936642190,-2308.77,0.00012569,2]
[337670153,1725936642199,-1299.55,0.00012569,2]
[337670154,1725936642209,-1542.43,0.00012569,2]
[337670155,1725936642218,-2972.59,0.00012569,2]
[337670156,1725936642228,-500.0,0.00012569,2]
[337670157,1725936642238,-500.0,0.00012569,2]
[337670158,1725936642247,-500.0,0.00012569,2]
[337670159,1725936642257,-500.0,0.00012569,2]
[337670160,1725936642268,-605.52,0.00012569,2]
[337670161,1725936642278,-1804.28,0.00012569,2]
[337670162,1725936642289,-1425.14,0.00012569,2]
[337670163,1725936642299,-500.0,0.00012569,2]
[337670164,1725936642308,-500.0,0.00012569,2]
[337670165,1725936642318,-687.52,0.00012569,2]
[337670166,1725936642332,-4417.5,0.00012569,2]
[337670167,1725936642346,-1731.78,0.00012569,2]
[337670168,1725936642361,-5698.77,0.00012569,2]
[337670169,1725936642375,-696.28,0.00012569,2]
[337670170,1725936642388,-671.87,0.00012569,2]
[337670171,1725936642400,-500.0,0.00012569,2]
[337670172,1725936642411,-2757.37,0.00012569,2]